fUSD/lending_fUSD_20250117
["ID","MTS","AMOUNT","RATE_DAILY","PERIOD"]
[349295413,1737102646998,-389.83,0.0002499,2]
[349295414,1737102647007,-389.83,0.0002499,2]
[349295415,1737102647016,-389.83,0.0002499,2]
[349295416,1737102647025,-389.83,0.0002499,2]
[349295417,1737102647035,-389.83,0.0002499,2]
[349295419,1737102647044,-389.83,0.0002499,2]
[349295421,1737102647054,-389.83,0.0002499,2]
[349295423,1737102647063,-389.83,0.0002499,2]
[349295424,1737102647072,-389.83,0.0002499,2]
[349295425,1737102647082,-389.83,0.0002499,2]
[349295426,1737102647091,-389.83,0.0002499,2]
[349295427,1737102647101,-389.83,0.0002499,2]
[349295428,1737102647110,-389.83,0.0002499,2]
[349295429,1737102647120,-389.83,0.0002499,2]
[349295430,1737102647129,-389.83,0.0002499,2]
[349295431,1737102647139,-389.83,0.0002499,2]
[349295432,1737102647148,-389.83,0.0002499,2]
[349295433,1737102647157,-389.83,0.0002499,2]
[349295434,1737102647169,-389.83,0.0002499,2]
[349295435,1737102647179,-389.83,0.0002499,2]
[349295436,1737102647188,-389.83,0.0002499,2]
[349295437,1737102647197,-389.83,0.0002499,2]
[349295438,1737102647206,-389.83,0.0002499,2]
[349295439,1737102647215,-389.83,0.0002499,2]
[349295440,1737102647225,-389.83,0.0002499,2]
[349295441,1737102647233,-389.83,0.0002499,2]
[349295442,1737102647242,-389.83,0.0002499,2]
[349295443,1737102647251,-389.83,0.0002499,2]
[349295444,1737102647261,-389.83,0.0002499,2]
[349295445,1737102647269,-13417.32373296,0.0002499,2]
[349295446,1737102647281,-3643.2591372,0.0002499,2]
[349295447,1737102647290,-500.0,0.00024991,2]
[349295448,1737102647299,-500.0,0.00024991,2]
[349295449,1737102647307,-500.0,0.00024991,2]
[349295450,1737102647316,-187.46379257,0.00024991,2]
[349295451,1737102647325,-128.99243197,0.00024991,2]
[349295452,1737102647336,-371.00756803,0.00024991,2]
[349295453,1737102647346,-757.95000094,0.00024993,2]
[349295454,1737102647355,-8998.1307755,0.00024993,2]
[349295455,1737102647363,-46.0186554,0.00024995,2]
[349295456,1737102647374,-373.68319709,0.00024995,2]
[349295457,1737102647384,-493.13044926,0.00024995,2]
[349295458,1737102647393,-203.91259662,0.00024995,2]
[349295459,1737102647403,-500.0,0.00024995,2]
[349295460,1737102647412,-500.0,0.00024995,2]
[349295461,1737102647423,-12387.9574673,0.00024996,2]
[349295462,1737102647433,-1523.9891895,0.00024996,2]
[349295463,1737102647442,-500.0,0.00024998,2]
[349295464,1737102647452,-255.67,0.00024998,2]
[349295465,1737102647461,-503.82411251,0.00024998,2]
[349295466,1737102647471,-500.0,0.00024999,2]
[349295467,1737102647480,-502.46124254,0.00024999,2]
[349295468,1737102647490,-502.75284392,0.00024999,2]
[349295469,1737102647500,-501.94581277,0.00024999,2]
[349295470,1737102647510,-227.81,0.00024999,2]
[349295471,1737102647520,-500.0,0.00024999,2]
[349295472,1737102647529,-380.94536789,0.00024999,2]
[349295473,1737102647539,-500.0,0.00024999,2]
[349295474,1737102647549,-477.59772058,0.00024999,2]
[349295475,1737102647562,-22.40227942,0.00024999,2]
[349295476,1737102647572,-500.0,0.00024999,2]
[349295477,1737102647583,-500.0,0.00024999,2]
[349295478,1737102647594,-219.40112935,0.00024999,2]
[349295479,1737102647604,-337.60125147,0.00024999,2]
[349295480,1737102647615,-500.0,0.00024999,2]
[349295481,1737102647626,-597.740768,0.00024999,2]
[349295482,1737102647641,-500.0,0.00024999,2]
[349295483,1737102647651,-500.0,0.00024999,2]
[349295484,1737102647662,-596.10148715,0.00024999,2]
[349295485,1737102647678,-178.10948324,0.00024999,2]
[349295486,1737102647690,-500.0,0.00024999,2]
[349295487,1737102647702,-500.0,0.00024999,2]
[349295488,1737102647713,-500.0,0.00024999,2]
[349295489,1737102647725,-221.0723093,0.00024999,2]
[349295490,1737102647738,-500.0,0.00024999,2]
[349295491,1737102647749,-267.47,0.00024999,2]
[349295492,1737102647760,-500.0,0.00024999,2]
[349295493,1737102647771,-500.0,0.00024999,2]
[349295494,1737102647781,-375.96,0.00024999,2]
[349295495,1737102647793,-500.0,0.00024999,2]
[349295496,1737102647804,-500.0,0.00024999,2]
[349295497,1737102647815,-500.0,0.00024999,2]
[349295498,1737102647826,-500.0,0.00024999,2]
[349295499,1737102647837,-500.0,0.00024999,2]
[349295500,1737102647848,-542.52,0.00024999,2]
[349295501,1737102647860,-408.56575369,0.00024999,2]
[349295502,1737102647871,-500.0,0.00024999,2]
[349295503,1737102647883,-500.0,0.00024999,2]
[349295504,1737102647893,-500.0,0.00024999,2]
[349295505,1737102647904,-500.0,0.00024999,2]
[349295506,1737102647916,-500.0,0.00024999,2]
[349295507,1737102647933,-500.0,0.00024999,2]
[349295508,1737102647945,-500.0,0.00024999,2]
[349295509,1737102647955,-267.15871175,0.00024999,2]
[349295510,1737102647966,-500.0,0.00024999,2]
[349295511,1737102647977,-500.0,0.00024999,2]
[349295512,1737102647987,-500.0,0.00024999,2]
[349295513,1737102647998,-233.35135604,0.00024999,2]
[349295514,1737102648007,-500.0,0.00024999,2]
[349295515,1737102648017,-500.0,0.00024999,2]
[349295516,1737102648181,-500.0,0.00024999,2]
[349295517,1737102648192,-500.0,0.00024999,2]
[349295518,1737102648203,-500.0,0.00024999,2]
[349295519,1737102648214,-500.0,0.00024999,2]
[349295520,1737102648224,-500.0,0.00024999,2]
[349295521,1737102648236,-500.0,0.00024999,2]
[349295522,1737102648246,-500.0,0.00024999,2]
[349295523,1737102648256,-500.0,0.00024999,2]
[349295524,1737102648267,-500.0,0.00024999,2]
[349295525,1737102648278,-500.0,0.00024999,2]
[349295526,1737102648288,-500.0,0.00024999,2]
[349295527,1737102648299,-500.0,0.00024999,2]
[349295528,1737102648309,-500.0,0.00024999,2]
[349295529,1737102648319,-500.0,0.00024999,2]
[349295530,1737102648329,-500.0,0.00024999,2]
[349295531,1737102648339,-500.0,0.00024999,2]
[349295532,1737102648349,-500.0,0.00024999,2]
[349295533,1737102648359,-500.0,0.00024999,2]
[349295534,1737102648369,-500.0,0.00024999,2]
[349295535,1737102648379,-500.0,0.00024999,2]
[349295536,1737102648389,-500.0,0.00024999,2]
[349295537,1737102648398,-48.36682143,0.00024999,2]
[349295538,1737102648527,-451.63317857,0.00024999,2]
[349295539,1737102648537,-196.76682143,0.00024999,2]
[349295540,1737102648549,-303.23317857,0.00024999,2]
[349295541,1737102648559,-207.76682143,0.00024999,2]
[349295542,1737102648571,-292.23317857,0.00024999,2]
[349295543,1737102648580,-296.70682143,0.00024999,2]
[349295544,1737102648591,-192.17317857,0.00024999,2]
[349295545,1737102648601,-500.0,0.00024999,2]
[349295546,1737102648610,-205.13841462,0.00024999,2]
[349295547,1737102648623,-35.33714537,0.00024999,2]
[349295548,1737102648635,-356.8812974,0.00024999,2]
[349295549,1737102648645,-500.0,0.00024999,2]
[349295550,1737102648656,-491.57769916,0.00024999,2]
[349295551,1737102648666,-301.85994086,0.00024999,2]
[349295552,1737102648679,-500.0,0.00024999,2]
[349295553,1737102648689,-286.18,0.00024999,2]
[349295554,1737102648699,-154.92358255,0.00025,2]
[349295555,1737102648708,-10014.56219702,0.00025,8]
[349295556,1737102648718,-743.3523116,0.00025,8]
[349295557,1737102648730,-131926.61934494,0.00025,8]
[349295558,1737102648741,-777.2170552,0.00025,8]
[349295559,1737102784339,160.73,0.00010137,2]
[349295561,1737102868233,-160.73,0.00021669,2]
[349295562,1737102868258,-165.6949,0.00023528,2]
[349295563,1737102868283,-4673.5751,0.00023528,7]
[349295564,1737102933730,-2000.0,0.0002499,35]
[349295566,1737103625185,-197.54,0.00012329,2]
[349295567,1737103625206,-340.2327562,0.0001648,2]
[349295568,1737103625227,-639.87109476,0.00023,2]
[349295569,1737103625250,-160.0,0.00023,2]
[349295570,1737103625274,-477.81697636,0.00023528,7]
[349295572,1737103639135,-642.73622267,0.00023528,7]
[349295573,1737103648094,-6409.84427111,0.00023528,7]
[349295574,1737103648115,-2323.7648502,0.00023621,2]
[349295575,1737103648136,-200.0,0.00023721,2]
[349295576,1737103648159,-773.56,0.00023906,2]
[349295577,1737103648179,-150.0,0.00023918,2]
[349295578,1737103648201,-2000.0,0.00023921,2]
[349295579,1737103648224,-250.0,0.00023926,2]
[349295580,1737103648245,-250.0,0.00023941,2]
[349295581,1737103648266,-10167.97287955,0.00024,2]
[349295587,1737103761103,-763.25,0.00021978,2]
[349295591,1737103815450,165.25,0.00019116,2]
[349295600,1737103831751,-201.74,0.0002388,2]
[349295601,1737103831760,-1000.0,0.00023896,2]
[349295602,1737103831770,-500.0,0.00023896,2]
[349295603,1737103831779,-216.4348769,0.00023909,2]
[349295604,1737103831789,-6139.30972689,0.00024,2]
[349295605,1737103831899,-4589.21621055,0.00024,2]
[349295606,1737103831910,-2607.42378946,0.00024,2]
[349295607,1737103832017,-694.16207403,0.00024,2]
[349295608,1737103832026,-150.0,0.00024178,2]
[349295609,1737103832036,-763.25,0.00024242,2]
[349295610,1737103832047,-213.9069502,0.000245,2]
[349295611,1737103832057,-379.0,0.00024502,2]
[349295612,1737103832067,-874.44,0.000246,2]
[349295613,1737103832077,-437.34,0.000246,2]
[349295614,1737103832087,-169.99,0.00024612,2]
[349295615,1737103832097,-348.85,0.00024657,2]
[349295616,1737103832107,-1000.0,0.00024657,14]
[349295617,1737103832117,-12519.3329828,0.00024697,2]
[349295618,1737103832126,-172.03,0.0002472,2]
[349295619,1737103832136,-500.0,0.000248,2]
[349295620,1737103832145,-438.14,0.000248,2]
[349295621,1737103832156,-15435.83419396,0.00024806,2]
[349295622,1737103832166,-157.21097324,0.00024865,2]
[349295623,1737103832175,-1894.806,0.00024875,8]
[349295624,1737103832186,-261.4457,0.00024899,2]
[349295625,1737103832196,-2037.8867,0.00024899,2]
[349295626,1737103832205,-2500.0,0.00024899,2]
[349295627,1737103832215,-663.5541,0.00024899,2]
[349295628,1737103832225,-736.1003,0.00024899,2]
[349295629,1737103832235,-5000.0,0.00024899,2]
[349295630,1737103832245,-220.0,0.000249,2]
[349295631,1737103832255,-1127.90966437,0.000249,2]
[349295632,1737103832264,-205.82568142,0.000249,2]
[349295633,1737103832275,-1467.09488042,0.000249,2]
[349295634,1737103832284,-1008.22,0.00024931,14]
[349295635,1737103832295,-151.0,0.00024984,2]
[349295636,1737103832304,-500.0,0.00024989,2]
[349295637,1737103832314,-500.0,0.00024989,2]
[349295638,1737103832324,-500.0,0.00024989,2]
[349295639,1737103832334,-500.0,0.00024989,2]
[349295640,1737103832344,-500.0,0.00024989,2]
[349295641,1737103832354,-3050.0,0.0002499,35]
[349295642,1737103832364,-500.0,0.00024995,2]
[349295643,1737103832374,-259.4349,0.00024995,2]
[349295644,1737103832384,-500.0,0.00024995,2]
[349295645,1737103832393,-500.0,0.00024995,2]
[349295646,1737103832405,-293.17,0.00024995,2]
[349295647,1737103832415,-500.0,0.00024998,2]
[349295648,1737103832424,-500.0,0.00024998,2]
[349295649,1737103832433,-500.0,0.00024998,2]
[349295650,1737103832443,-500.0,0.00024998,2]
[349295651,1737103832454,-500.0,0.00024998,2]
[349295652,1737103832463,-212.59011903,0.00024998,2]
[349295653,1737103832473,-500.0,0.00024998,2]
[349295654,1737103832483,-500.0,0.00024998,2]
[349295655,1737103832493,-500.0,0.00024998,2]
[349295656,1737103832502,-500.0,0.00024998,2]
[349295657,1737103832511,-500.0,0.00024998,2]
[349295658,1737103832521,-567.49286745,0.00024998,2]
[349295659,1737103832530,-500.0,0.00024998,2]
[349295660,1737103832540,-500.0,0.00024998,2]
[349295661,1737103832550,-500.0,0.00024998,2]
[349295662,1737103832560,-500.0,0.00024998,2]
[349295663,1737103832570,-500.0,0.00024998,2]
[349295664,1737103832579,-500.0,0.00024998,2]
[349295665,1737103832589,-383.54007269,0.00024998,2]
[349295666,1737103832598,-500.0,0.00024998,2]
[349295667,1737103832608,-500.0,0.00024998,2]
[349295668,1737103832618,-500.0,0.00024998,2]
[349295669,1737103832627,-500.0,0.00024998,2]
[349295670,1737103832637,-500.0,0.00024998,2]
[349295671,1737103832646,-500.0,0.00024998,2]
[349295672,1737103832656,-500.0,0.00024998,2]
[349295673,1737103832665,-387.25284626,0.00024998,2]
[349295786,1737103837566,-112.74715374,0.00024998,2]
[349295787,1737103837576,-500.0,0.00024998,2]
[349295788,1737103837586,-500.0,0.00024998,2]
[349295789,1737103837596,-467.34555169,0.00024998,2]
[349295790,1737103837606,-500.0,0.00024998,2]
[349295791,1737103837616,-500.0,0.00024998,2]
[349295792,1737103837626,-500.0,0.00024998,2]
[349295793,1737103837635,-500.0,0.00024998,2]
[349295794,1737103837644,-500.0,0.00024998,2]
[349295795,1737103837654,-582.56558743,0.00024998,2]
[349295796,1737103837664,-500.0,0.00024998,2]
[349295797,1737103837673,-500.0,0.00024998,2]
[349295798,1737103837683,-500.0,0.00024998,2]
[349295799,1737103837693,-500.0,0.00024998,2]
[349295800,1737103837702,-500.0,0.00024998,2]
[349295801,1737103837712,-500.0,0.00024998,2]
[349295802,1737103837721,-500.0,0.00024998,2]
[349295803,1737103837730,-271.75,0.00024998,2]
[349295804,1737103837739,-500.0,0.00024998,2]
[349295805,1737103837748,-500.0,0.00024998,2]
[349295806,1737103837757,-500.00128527,0.00024998,2]
[349295807,1737103837767,-500.0,0.00024998,2]
[349295808,1737103837776,-500.0,0.00024998,2]
[349295809,1737103837785,-500.0,0.00024998,2]
[349295810,1737103837795,-500.0,0.00024998,2]
[349295813,1737103837804,-500.0,0.00024998,2]
[349295819,1737103837983,-500.0,0.00024998,2]
[349295821,1737103837993,-500.0,0.00024998,2]
[349295823,1737103838005,-500.0,0.00024998,2]
[349295824,1737103838015,-500.0,0.00024998,2]
[349295825,1737103838025,-500.0,0.00024998,2]
[349295826,1737103838034,-500.0,0.00024998,2]
[349295827,1737103838045,-46254.95892187,0.00024999,9]
[349295828,1737103838057,-436.31616147,0.00024999,9]
[349295829,1737103838072,-1391.32276635,0.00024999,9]
[349295830,1737103838084,-145796.50698989,0.00024999,9]
[349295831,1737103838195,-30359.30862244,0.00024999,9]
[349295832,1737103838207,-75045.60234088,0.00024999,9]
[349295833,1737103838218,-38807.20252997,0.00024999,9]
[349295834,1737103838229,-448.74399795,0.00024999,9]
[349295835,1737103838240,-8926.61547988,0.00024999,9]
[349295836,1737103838255,-255.66000011,0.00024999,9]
[349295837,1737103838534,-2337.54355486,0.00024999,9]
[349295838,1737103838550,-5103.5,0.00024999,9]
[349295848,1737103839735,-509.84154206,0.00024999,9]
[349295849,1737103839746,-806.34000009,0.00024999,9]
[349295850,1737103839899,-1161.33140907,0.00024999,9]
[349295851,1737103839911,-4417.42810307,0.00024999,9]
[349295852,1737103840177,-414.255045,0.00024999,9]
[349295853,1737103840234,-13462.10614525,0.00024999,9]
[349295854,1737103840291,-1764.66272101,0.00024999,9]
[349295884,1737103842727,-500.0,0.00024998,2]
[349295886,1737103842737,-500.0,0.00024998,2]
[349295888,1737103842746,-4428.65999998,0.00024999,9]
[349295896,1737103842838,-500.0,0.00024998,2]
[349295897,1737103842847,-19542.725,0.00024999,9]
[349295898,1737103842967,-991258.31490679,0.00024999,9]
[349295899,1737103842976,-74299.88798847,0.00024999,2]
[349295900,1737103842985,-503.00374794,0.00024999,2]
[349295901,1737103842994,-300.15,0.00024999,2]
[349295902,1737103843005,-501.82146112,0.00024999,2]
[349295904,1737103843016,-500.0,0.00024999,2]
[349295906,1737103843025,-500.0,0.00024999,2]
[349295908,1737103843034,-500.0,0.00024999,2]
[349295910,1737103843043,-402.35226862,0.00024999,2]
[349295912,1737103843053,-500.0,0.00024999,2]
[349295914,1737103843063,-500.0,0.00024999,2]
[349295916,1737103843072,-158.183133,0.00024999,2]
[349295918,1737103843082,-500.0,0.00024999,2]
[349295920,1737103843092,-500.0,0.00024999,2]
[349295922,1737103843100,-500.0,0.00024999,2]
[349295924,1737103843109,-500.0,0.00024999,2]
[349295926,1737103843117,-500.0,0.00024999,2]
[349295928,1737103843126,-500.0,0.00024999,2]
[349295930,1737103843135,-500.0,0.00024999,2]
[349295932,1737103843148,-334.45153891,0.00024999,2]
[349295934,1737103843158,-500.0,0.00024999,2]
[349295936,1737103843167,-500.0,0.00024999,2]
[349295938,1737103843176,-500.0,0.00024999,2]
[349295940,1737103843185,-376.58158531,0.00024999,2]
[349295942,1737103843194,-500.0,0.00024999,2]
[349295944,1737103843203,-500.0,0.00024999,2]
[349295946,1737103843213,-500.0,0.00024999,2]
[349295948,1737103843222,-500.0,0.00024999,2]
[349295949,1737103843231,-500.0,0.00024999,2]
[349295951,1737103843240,-500.0,0.00024999,2]
[349295953,1737103843250,-378.25665514,0.00024999,2]
[349295955,1737103843259,-500.0,0.00024999,2]
[349295957,1737103843269,-500.0,0.00024999,2]
[349295959,1737103843278,-500.0,0.00024999,2]
[349295961,1737103843287,-500.0,0.00024999,2]
[349295963,1737103843296,-500.0,0.00024999,2]
[349295965,1737103843305,-500.0,0.00024999,2]
[349295967,1737103843314,-500.0,0.00024999,2]
[349295969,1737103843324,-500.0,0.00024999,2]
[349295971,1737103843333,-500.0,0.00024999,2]
[349295973,1737103843343,-500.0,0.00024999,2]
[349295976,1737103843354,-500.0,0.00024999,2]
[349295977,1737103843363,-500.0,0.00024999,2]
[349295980,1737103843373,-556.13,0.00024999,2]
[349295982,1737103843382,-500.0,0.00024999,2]
[349295983,1737103843391,-500.0,0.00024999,2]
[349295986,1737103843401,-500.0,0.00024999,2]
[349295987,1737103843411,-500.0,0.00024999,2]
[349295990,1737103843421,-500.0,0.00024999,2]
[349295992,1737103843430,-500.0,0.00024999,2]
[349295993,1737103843439,-500.0,0.00024999,2]
[349295995,1737103843448,-500.0,0.00024999,2]
[349295997,1737103843457,-500.0,0.00024999,2]
[349295999,1737103843467,-500.0,0.00024999,2]
[349296001,1737103843477,-500.0,0.00024999,2]
[349296003,1737103843486,-544.36050222,0.00024999,2]
[349296005,1737103843496,-500.0,0.00024999,2]
[349296007,1737103843505,-500.0,0.00024999,2]
[349296009,1737103843515,-500.0,0.00024999,2]
[349296011,1737103843523,-500.0,0.00024999,2]
[349296013,1737103843533,-500.0,0.00024999,2]
[349296015,1737103843542,-500.0,0.00024999,2]
[349296017,1737103843551,-500.0,0.00024999,2]
[349296019,1737103843561,-500.0,0.00024999,2]
[349296021,1737103843570,-500.0,0.00024999,2]
[349296023,1737103843581,-500.0,0.00024999,2]
[349296025,1737103843589,-500.0,0.00024999,2]
[349296027,1737103843599,-500.0,0.00024999,2]
[349296029,1737103843608,-500.0,0.00024999,2]
[349296031,1737103843617,-500.0,0.00024999,2]
[349296033,1737103843626,-500.0,0.00024999,2]
[349296035,1737103843635,-500.0,0.00024999,2]
[349296037,1737103843644,-500.0,0.00024999,2]
[349296038,1737103843653,-500.0,0.00024999,2]
[349296040,1737103843664,-500.0,0.00024999,2]
[349296042,1737103843673,-500.0,0.00024999,2]
[349296044,1737103843682,-500.0,0.00024999,2]
[349296046,1737103843691,-500.0,0.00024999,2]
[349296048,1737103843700,-500.0,0.00024999,2]
[349296050,1737103843709,-287.74099872,0.00024999,2]
[349296052,1737103843720,-452.46200351,0.00024999,2]
[349296054,1737103843729,-500.0,0.00024999,2]
[349296056,1737103843738,-500.0,0.00024999,2]
[349296058,1737103843747,-500.0,0.00024999,2]
[349296060,1737103843757,-500.0,0.00024999,2]
[349296062,1737103843767,-500.0,0.00024999,2]
[349296064,1737103843776,-500.0,0.00024999,2]
[349296066,1737103843786,-500.0,0.00024999,2]
[349296068,1737103843796,-500.0,0.00024999,2]
[349296070,1737103843806,-503.53542871,0.00024999,2]
[349296071,1737103843816,-500.0,0.00024999,2]
[349296072,1737103843825,-500.0,0.00024999,2]
[349296073,1737103843834,-379.14017447,0.00024999,2]
[349296074,1737103843843,-500.0,0.00024999,2]
[349296075,1737103843852,-507.71328639,0.00024999,2]
[349296076,1737103843862,-500.0,0.00024999,2]
[349296077,1737103843871,-500.0,0.00024999,2]
[349296078,1737103843880,-500.0,0.00024999,2]
[349296079,1737103843890,-500.0,0.00024999,2]
[349296080,1737103843899,-522.25542908,0.00024999,2]
[349296081,1737103843908,-505.2715018,0.00024999,2]
[349296082,1737103843918,-500.0,0.00024999,2]
[349296083,1737103843927,-500.0,0.00024999,2]
[349296084,1737103843936,-500.0,0.00024999,2]
[349296085,1737103843946,-500.0,0.00024999,2]
[349296086,1737103843955,-615.16287303,0.00024999,2]
[349296087,1737103843965,-506.86904733,0.00024999,2]
[349296088,1737103843975,-420.23748496,0.00024999,2]
[349296089,1737103843985,-500.0,0.00024999,2]
[349296090,1737103843994,-500.0,0.00024999,2]
[349296091,1737103844006,-501.15925114,0.00024999,2]
[349296092,1737103844015,-500.0,0.00024999,2]
[349296093,1737103844024,-623.81849297,0.00024999,2]
[349296094,1737103844034,-500.0,0.00024999,2]
[349296095,1737103844043,-500.0,0.00024999,2]
[349296096,1737103844052,-500.0,0.00024999,2]
[349296097,1737103844062,-500.0,0.00024999,2]
[349296098,1737103844071,-500.0,0.00024999,2]
[349296099,1737103844081,-375.25806977,0.00024999,2]
[349296100,1737103844090,-500.0,0.00024999,2]
[349296101,1737103844099,-500.0,0.00024999,2]
[349296102,1737103844108,-500.0,0.00024999,2]
[349296103,1737103844118,-500.0,0.00024999,2]
[349296104,1737103844127,-500.0,0.00024999,2]
[349296105,1737103844136,-500.0,0.00024999,2]
[349296106,1737103844145,-500.0,0.00024999,2]
[349296107,1737103844154,-500.0,0.00024999,2]
[349296108,1737103844166,-503.9907302,0.00024999,2]
[349296109,1737103844175,-500.0,0.00024999,2]
[349296110,1737103844185,-500.0,0.00024999,2]
[349296111,1737103844194,-500.0,0.00024999,2]
[349296112,1737103844204,-500.0,0.00024999,2]
[349296113,1737103844213,-500.0,0.00024999,2]
[349296114,1737103844222,-500.0,0.00024999,2]
[349296115,1737103844232,-500.0,0.00024999,2]
[349296116,1737103844241,-505.08522092,0.00024999,2]
[349296117,1737103844250,-500.0,0.00024999,2]
[349296118,1737103844259,-500.0,0.00024999,2]
[349296119,1737103844269,-500.0,0.00024999,2]
[349296120,1737103844279,-500.0,0.00024999,2]
[349296121,1737103844289,-173.34258092,0.00024999,2]
[349296122,1737103844298,-500.0,0.00024999,2]
[349296123,1737103844309,-365.96699181,0.00024999,2]
[349296124,1737103844318,-500.0,0.00024999,2]
[349296125,1737103844328,-495.04422949,0.00024999,2]
[349296126,1737103844338,-500.0,0.00024999,2]
[349296127,1737103844348,-500.0,0.00024999,2]
[349296128,1737103844357,-500.7522919,0.00024999,2]
[349296129,1737103844367,-500.0,0.00024999,2]
[349296130,1737103844377,-500.0,0.00024999,2]
[349296131,1737103844386,-500.0,0.00024999,2]
[349296132,1737103844396,-549.12945063,0.00024999,2]
[349296133,1737103844406,-500.0,0.00024999,2]
[349296134,1737103844416,-500.0,0.00024999,2]
[349296135,1737103844426,-500.0,0.00024999,2]
[349296136,1737103844436,-500.0,0.00024999,2]
[349296137,1737103844446,-500.0,0.00024999,2]
[349296138,1737103844455,-500.0,0.00024999,2]
[349296139,1737103844465,-500.0,0.00024999,2]
[349296140,1737103844474,-500.0,0.00024999,2]
[349296141,1737103844483,-500.0,0.00024999,2]
[349296142,1737103844493,-500.0,0.00024999,2]
[349296143,1737103844503,-500.0,0.00024999,2]
[349296144,1737103844512,-500.0,0.00024999,2]
[349296145,1737103844521,-500.0,0.00024999,2]
[349296146,1737103844530,-500.0,0.00024999,2]
[349296147,1737103844540,-500.0,0.00024999,2]
[349296148,1737103844549,-500.0,0.00024999,2]
[349296149,1737103844558,-517.8311705,0.00024999,2]
[349296150,1737103844567,-482.57842584,0.00024999,2]
[349296151,1737103844576,-500.0,0.00024999,2]
[349296152,1737103844585,-618.39987668,0.00024999,2]
[349296153,1737103844594,-529.28,0.00024999,2]
[349296154,1737103844603,-500.0,0.00024999,2]
[349296155,1737103844612,-500.0,0.00024999,2]
[349296156,1737103844621,-500.0,0.00024999,2]
[349296157,1737103844630,-500.0,0.00024999,2]
[349296158,1737103844639,-500.0,0.00024999,2]
[349296159,1737103844648,-500.0,0.00024999,2]
[349296160,1737103844658,-501.04842684,0.00024999,2]
[349296161,1737103844668,-501.49679007,0.00024999,2]
[349296162,1737103844677,-500.0,0.00024999,2]
[349296163,1737103844686,-500.0,0.00024999,2]
[349296164,1737103844695,-500.0,0.00024999,2]
[349296165,1737103844705,-500.0,0.00024999,2]
[349296166,1737103844714,-500.0,0.00024999,2]
[349296167,1737103844723,-500.0,0.00024999,2]
[349296168,1737103844732,-500.0,0.00024999,2]
[349296169,1737103844742,-500.0,0.00024999,2]
[349296170,1737103844751,-501.84426462,0.00024999,2]
[349296171,1737103844760,-500.0,0.00024999,2]
[349296172,1737103844769,-500.0,0.00024999,2]
[349296173,1737103844779,-500.0,0.00024999,2]
[349296174,1737103844788,-181.81,0.00024999,2]
[349296175,1737103844798,-500.0,0.00024999,2]
[349296176,1737103844807,-500.0,0.00024999,2]
[349296177,1737103844818,-500.0,0.00024999,2]
[349296178,1737103844828,-500.0,0.00024999,2]
[349296179,1737103844838,-515.65162884,0.00024999,2]
[349296180,1737103844847,-500.0,0.00024999,2]
[349296181,1737103844857,-174.21,0.00024999,2]
[349296182,1737103844866,-631.81,0.00024999,2]
[349296183,1737103844875,-401.04017742,0.00024999,2]
[349296184,1737103844885,-500.0,0.00024999,2]
[349296185,1737103844894,-500.0,0.00024999,2]